[Event "Titled Tuesday Blitz August 22 Late 2023"]
[White "Grebeniuk, Semen"]
[Black "GaiozNigalidze"]
[WhiteFideId "14117509"]
[WhiteElo "2567"]
[BlackElo "2682"]
[Result "0-1"]
[Round "11"]
[TimeControl "180+1"]
[Date "2023.08.22"]
[WhiteClock "0:00:04"]
[BlackClock "0:00:09"]
[Board "50"]

1. d4 {[%clk 0:03:00]}  Nf6 {[%clk 0:02:54]} 2. Nf3 {[%clk 0:03:01]}  c5 {[%clk 0:02:52]} 3. e3 {[%clk 0:03:00]}  d5 {[%clk 0:02:51]} 4. Bd3 {[%clk 0:02:59]}  cxd4 {[%clk 0:02:51]} 5. exd4 {[%clk 0:02:59]}  Nc6 {[%clk 0:02:51]} 6. c3 {[%clk 0:02:59]}  Bg4 {[%clk 0:02:51]} 7. Bf4 {[%clk 0:02:58]}  e6 {[%clk 0:02:52]} 8. Nbd2 {[%clk 0:02:57]}  Bd6 {[%clk 0:02:51]} 9. Bg3 {[%clk 0:02:55]}  O-O {[%clk 0:02:50]} 10. O-O {[%clk 0:02:50]}  Bxg3 {[%clk 0:02:49]} 11. hxg3 {[%clk 0:02:51]}  Qd6 {[%clk 0:02:50]} 12. Re1 {[%clk 0:02:45]}  Rfe8 {[%clk 0:02:49]} 13. Qb3 {[%clk 0:02:44]}  Bxf3 {[%clk 0:02:47]} 14. Nxf3 {[%clk 0:02:44]}  Rab8 {[%clk 0:02:41]} 15. a4 {[%clk 0:02:40]}  Ng4 {[%clk 0:02:33]} 16. Bb5 {[%clk 0:02:26]}  Rec8 {[%clk 0:02:12]} 17. Qd1 {[%clk 0:02:04]}  Ne7 {[%clk 0:02:04]} 18. Bd3 {[%clk 0:02:00]}  Ng6 {[%clk 0:01:50]} 19. Ng5 {[%clk 0:01:57]}  Nf6 {[%clk 0:01:47]} 20. a5 {[%clk 0:01:33]}  Re8 {[%clk 0:01:47]} 21. Qb3 {[%clk 0:01:20]}  Ne7 {[%clk 0:01:27]} 22. Qc2 {[%clk 0:01:19]}  h6 {[%clk 0:01:24]} 23. Nf3 {[%clk 0:01:19]}  Nc6 {[%clk 0:01:22]} 24. Ne5 {[%clk 0:01:18]}  Nd7 {[%clk 0:01:20]} 25. Nxd7 {[%clk 0:00:58]}  Qxd7 {[%clk 0:01:20]} 26. Qe2 {[%clk 0:00:59]}  a6 {[%clk 0:00:50]} 27. Qh5 {[%clk 0:00:58]}  Qe7 {[%clk 0:00:45]} 28. f4 {[%clk 0:00:46]}  Qf6 {[%clk 0:00:46]} 29. Qf3 {[%clk 0:00:28]}  Rbc8 {[%clk 0:00:43]} 30. Bc2 {[%clk 0:00:26]}  Qd8 {[%clk 0:00:36]} 31. Qd3 {[%clk 0:00:24]}  g6 {[%clk 0:00:37]} 32. b4 {[%clk 0:00:20]}  Ne7 {[%clk 0:00:30]} 33. Re3 {[%clk 0:00:19]}  Nf5 {[%clk 0:00:30]} 34. Rf3 {[%clk 0:00:19]}  Nd6 {[%clk 0:00:29]} 35. Re1 {[%clk 0:00:18]}  Qf6 {[%clk 0:00:18]} 36. Qe2 {[%clk 0:00:17]}  Rc7 {[%clk 0:00:15]} 37. g4 {[%clk 0:00:17]}  Rec8 {[%clk 0:00:13]} 38. Qd2 {[%clk 0:00:16]}  Nc4 {[%clk 0:00:13]} 39. Qc1 {[%clk 0:00:16]}  Nd6 {[%clk 0:00:13]} 40. g5 {[%clk 0:00:13]}  hxg5 {[%clk 0:00:11]} 41. fxg5 {[%clk 0:00:14]}  Qg7 {[%clk 0:00:12]} 42. Ree3 {[%clk 0:00:14]}  Nb5 {[%clk 0:00:11]} 43. Qd2 {[%clk 0:00:14]}  Nd6 {[%clk 0:00:10]} 44. Qf2 {[%clk 0:00:09]}  Nc4 {[%clk 0:00:09]} 45. Re1 {[%clk 0:00:09]}  Na3 {[%clk 0:00:09]} 46. Bd3 {[%clk 0:00:07]}  Rxc3 {[%clk 0:00:08]} 47. Rf1 {[%clk 0:00:08]}  Nb5 {[%clk 0:00:08]} 48. Rxf7 {[%clk 0:00:08]}  Qxd4 {[%clk 0:00:06]} 49. Bxg6 {[%clk 0:00:08]}  Qxf2+ {[%clk 0:00:05]} 50. R1xf2 {[%clk 0:00:09]}  Nd4 {[%clk 0:00:06]} 51. Bh7+ {[%clk 0:00:08]}  Kh8 {[%clk 0:00:05]} 52. g6 {[%clk 0:00:09]}  Nf5 {[%clk 0:00:06]} 53. R7xf5 {[%clk 0:00:06]}  exf5 {[%clk 0:00:07]} 54. Rxf5 {[%clk 0:00:07]}  Rc1+ {[%clk 0:00:06]} 55. Kh2 {[%clk 0:00:07]}  R1c7 {[%clk 0:00:07]} 56. Rxd5 {[%clk 0:00:07]}  Kg7 {[%clk 0:00:08]} 57. Rd6 {[%clk 0:00:07]}  Re8 {[%clk 0:00:08]} 58. Rb6 {[%clk 0:00:08]}  Re5 {[%clk 0:00:07]} 59. Kg3 {[%clk 0:00:08]}  Rb5 {[%clk 0:00:07]} 60. Rxb5 {[%clk 0:00:07]}  axb5 {[%clk 0:00:08]} 61. Kf4 {[%clk 0:00:08]}  Rc4+ {[%clk 0:00:08]} 62. Ke5 {[%clk 0:00:04]}  Rxb4 {[%clk 0:00:09]} 0-1


[Site "https://www.chess.com"]

[Event "Titled Tuesday Blitz August 22 Late 2023"]
[White "Gurevich, Dmitry"]
[Black "Vlassov, Nikolai"]
[WhiteFideId "2000407"]
[BlackFideId "4103360"]
[WhiteElo "2535"]
[BlackElo "2603"]
[Result "0-1"]
[Round "11"]
[TimeControl "180+1"]
[Date "2023.08.22"]
[WhiteClock "0:01:23"]
[BlackClock "0:01:55"]
[Board "53"]

1. d4 {[%clk 0:03:00]}  Nf6 {[%clk 0:02:59]} 2. c4 {[%clk 0:03:00]}  Nc6 {[%clk 0:02:59]} 3. Nf3 {[%clk 0:02:58]}  e6 {[%clk 0:02:58]} 4. Nc3 {[%clk 0:02:57]}  Bb4 {[%clk 0:02:58]} 5. Qc2 {[%clk 0:02:57]}  d6 {[%clk 0:02:58]} 6. Bd2 {[%clk 0:02:57]}  O-O {[%clk 0:02:57]} 7. a3 {[%clk 0:02:56]}  Bxc3 {[%clk 0:02:57]} 8. Bxc3 {[%clk 0:02:57]}  Qe7 {[%clk 0:02:57]} 9. e3 {[%clk 0:02:55]}  e5 {[%clk 0:02:57]} 10. dxe5 {[%clk 0:02:55]}  dxe5 {[%clk 0:02:57]} 11. Be2 {[%clk 0:02:55]}  Bg4 {[%clk 0:02:54]} 12. O-O {[%clk 0:02:54]}  a5 {[%clk 0:02:50]} 13. b3 {[%clk 0:02:53]}  Rfe8 {[%clk 0:02:48]} 14. h3 {[%clk 0:02:44]}  Bh5 {[%clk 0:02:48]} 15. Qb2 {[%clk 0:02:41]}  Ne4 {[%clk 0:02:43]} 16. Be1 {[%clk 0:02:37]}  f6 {[%clk 0:02:31]} 17. Nxe5 {[%clk 0:02:31]}  Qxe5 {[%clk 0:02:29]} 18. Qxe5 {[%clk 0:02:27]}  Rxe5 {[%clk 0:02:29]} 19. f3 {[%clk 0:02:16]}  Nc5 {[%clk 0:02:23]} 20. e4 {[%clk 0:01:52]}  Nxb3 {[%clk 0:02:16]} 21. Rb1 {[%clk 0:01:46]}  a4 {[%clk 0:02:14]} 22. Bd1 {[%clk 0:01:42]}  Bf7 {[%clk 0:02:05]} 23. Rf2 {[%clk 0:01:30]}  Bxc4 {[%clk 0:01:58]} 24. Rfb2 {[%clk 0:01:23]}  b5 {[%clk 0:01:55]} 0-1


[Site "https://www.chess.com"]

[Event "Titled Tuesday Blitz August 22 Late 2023"]
[White "Swicarz, Maciej"]
[Black "Kim, Sergey"]
[WhiteFideId "1113585"]
[BlackFideId "13700570"]
[WhiteElo "2520"]
[BlackElo "2596"]
[Result "0-1"]
[Round "11"]
[TimeControl "180+1"]
[Date "2023.08.22"]
[WhiteClock "0:01:57"]
[BlackClock "0:01:39"]
[Board "54"]

1. e4 {[%clk 0:03:00]}  e5 {[%clk 0:03:00]} 2. Nf3 {[%clk 0:03:00]}  Nc6 {[%clk 0:03:00]} 3. c3 {[%clk 0:03:00]}  d5 {[%clk 0:02:58]} 4. Qa4 {[%clk 0:03:00]}  f6 {[%clk 0:02:56]} 5. d3 {[%clk 0:02:59]}  Ne7 {[%clk 0:02:54]} 6. Nbd2 {[%clk 0:02:58]}  Be6 {[%clk 0:02:52]} 7. Be2 {[%clk 0:02:58]}  Qd7 {[%clk 0:02:51]} 8. Qc2 {[%clk 0:02:57]}  Ng6 {[%clk 0:02:50]} 9. g3 {[%clk 0:02:53]}  Be7 {[%clk 0:02:43]} 10. h4 {[%clk 0:02:52]}  O-O-O {[%clk 0:02:39]} 11. a3 {[%clk 0:02:48]}  f5 {[%clk 0:02:26]} 12. b4 {[%clk 0:02:43]}  fxe4 {[%clk 0:02:18]} 13. dxe4 {[%clk 0:02:44]}  d4 {[%clk 0:02:16]} 14. Bb5 {[%clk 0:02:40]}  a6 {[%clk 0:02:10]} 15. Bxc6 {[%clk 0:02:13]}  Qxc6 {[%clk 0:02:09]} 16. h5 {[%clk 0:02:14]}  dxc3 {[%clk 0:02:05]} 17. Nb1 {[%clk 0:02:13]}  Bg4 {[%clk 0:01:55]} 18. hxg6 {[%clk 0:01:59]}  Bxf3 {[%clk 0:01:54]} 19. Rxh7 {[%clk 0:01:59]}  Rxh7 {[%clk 0:01:51]} 20. gxh7 {[%clk 0:01:59]}  Qxe4+ {[%clk 0:01:39]} 21. Qxe4 {[%clk 0:01:57]}  Rd1# {[%clk 0:01:39]} 0-1


[Site "https://www.chess.com"]

[Event "Titled Tuesday Blitz August 22 Late 2023"]
[White "Roebers, Eline"]
[Black "Pinto, Daniel"]
[WhiteFideId "1058401"]
[BlackFideId "3303144"]
[WhiteElo "2583"]
[BlackElo "2469"]
[Result "1-0"]
[Round "11"]
[TimeControl "180+1"]
[Date "2023.08.22"]
[WhiteClock "0:01:45"]
[BlackClock "0:00:00"]
[Board "56"]

1. e4 {[%clk 0:03:00]}  e5 {[%clk 0:02:59]} 2. Nf3 {[%clk 0:03:00]}  Nc6 {[%clk 0:02:59]} 3. Nc3 {[%clk 0:03:01]}  Nf6 {[%clk 0:02:59]} 4. a3 {[%clk 0:03:00]}  d5 {[%clk 0:02:46]} 5. Bb5 {[%clk 0:03:00]}  d4 {[%clk 0:02:39]} 6. Ne2 {[%clk 0:02:59]}  Bd6 {[%clk 0:02:37]} 7. d3 {[%clk 0:02:59]}  Nh5 {[%clk 0:01:29]} 8. h3 {[%clk 0:02:45]}  a6 {[%clk 0:01:22]} 9. Ba4 {[%clk 0:02:43]}  b5 {[%clk 0:01:22]} 10. Bb3 {[%clk 0:02:43]}  Be6 {[%clk 0:01:22]} 11. Bxe6 {[%clk 0:02:42]}  fxe6 {[%clk 0:01:23]} 12. c3 {[%clk 0:02:42]}  dxc3 {[%clk 0:01:18]} 13. bxc3 {[%clk 0:02:43]}  O-O {[%clk 0:01:18]} 14. d4 {[%clk 0:02:41]}  exd4 {[%clk 0:01:18]} 15. cxd4 {[%clk 0:02:41]}  e5 {[%clk 0:01:13]} 16. Be3 {[%clk 0:02:38]}  exd4 {[%clk 0:01:10]} 17. Nexd4 {[%clk 0:02:34]}  Nxd4 {[%clk 0:00:48]} 18. Nxd4 {[%clk 0:02:35]}  Qe8 {[%clk 0:00:48]} 19. Nf5 {[%clk 0:02:19]}  Be5 {[%clk 0:00:33]} 20. Rc1 {[%clk 0:02:14]}  Rd8 {[%clk 0:00:28]} 21. Qg4 {[%clk 0:02:12]}  Kh8 {[%clk 0:00:15]} 22. O-O {[%clk 0:02:08]}  Qf7 {[%clk 0:00:12]} 23. Rfd1 {[%clk 0:02:05]}  Nf6 {[%clk 0:00:11]} 24. Qh4 {[%clk 0:02:05]}  Rxd1+ {[%clk 0:00:10]} 25. Rxd1 {[%clk 0:02:05]}  g6 {[%clk 0:00:10]} 26. Nh6 {[%clk 0:02:03]}  Qb3 {[%clk 0:00:10]} 27. Re1 {[%clk 0:01:57]}  Bc3 {[%clk 0:00:09]} 28. Rf1 {[%clk 0:01:53]}  Qe6 {[%clk 0:00:10]} 29. f3 {[%clk 0:01:51]}  Rc8 {[%clk 0:00:06]} 30. Qg5 {[%clk 0:01:47]}  c5 {[%clk 0:00:01]} 31. Rc1 {[%clk 0:01:45]}  Qe5 {[%clk 0:00:02]} 32. Nf7+ {[%clk 0:01:45]}  Kg7 {[%clk 0:00:00]} 33. Nxe5 {[%clk 0:01:45]} 1-0


[Site "https://www.chess.com"]

[Event "Titled Tuesday Blitz August 22 Late 2023"]
[White "Buchenau, Frank"]
[Black "Hjartarson, Johann"]
[WhiteFideId "4604350"]
[BlackFideId "2300044"]
[WhiteElo "2462"]
[BlackElo "2628"]
[Result "1/2-1/2"]
[Round "11"]
[TimeControl "180+1"]
[Date "2023.08.22"]
[WhiteClock "0:00:51"]
[BlackClock "0:00:32"]
[Board "58"]

1. e4 {[%clk 0:03:00]}  g6 {[%clk 0:02:58]} 2. d4 {[%clk 0:03:00]}  Bg7 {[%clk 0:02:59]} 3. Nc3 {[%clk 0:03:01]}  d6 {[%clk 0:02:59]} 4. Nf3 {[%clk 0:03:01]}  a6 {[%clk 0:02:58]} 5. Bc4 {[%clk 0:03:01]}  b5 {[%clk 0:02:56]} 6. Bd5 {[%clk 0:03:01]}  c6 {[%clk 0:02:55]} 7. Bb3 {[%clk 0:03:02]}  e6 {[%clk 0:02:54]} 8. O-O {[%clk 0:03:01]}  Ne7 {[%clk 0:02:53]} 9. e5 {[%clk 0:03:01]}  d5 {[%clk 0:02:50]} 10. a4 {[%clk 0:02:57]}  Bb7 {[%clk 0:02:42]} 11. Ne2 {[%clk 0:02:55]}  Nd7 {[%clk 0:02:40]} 12. c3 {[%clk 0:02:54]}  h6 {[%clk 0:02:37]} 13. h4 {[%clk 0:02:53]}  c5 {[%clk 0:02:37]} 14. Bc2 {[%clk 0:02:45]}  Qc7 {[%clk 0:02:36]} 15. Be3 {[%clk 0:02:41]}  Nf5 {[%clk 0:02:31]} 16. Bxf5 {[%clk 0:02:34]}  gxf5 {[%clk 0:02:28]} 17. axb5 {[%clk 0:02:34]}  axb5 {[%clk 0:02:27]} 18. Rxa8+ {[%clk 0:02:35]}  Bxa8 {[%clk 0:02:27]} 19. Nf4 {[%clk 0:02:33]}  Bf8 {[%clk 0:02:05]} 20. Nh5 {[%clk 0:02:29]}  Rg8 {[%clk 0:02:02]} 21. Qd2 {[%clk 0:02:27]}  Rg6 {[%clk 0:01:52]} 22. Ra1 {[%clk 0:02:26]}  Bc6 {[%clk 0:01:50]} 23. b3 {[%clk 0:02:13]}  Qb7 {[%clk 0:01:40]} 24. Qa2 {[%clk 0:02:09]}  b4 {[%clk 0:01:36]} 25. Nf4 {[%clk 0:02:01]}  Rg4 {[%clk 0:01:34]} 26. cxb4 {[%clk 0:01:53]}  c4 {[%clk 0:01:25]} 27. b5 {[%clk 0:01:46]}  Qxb5 {[%clk 0:01:23]} 28. bxc4 {[%clk 0:01:43]}  dxc4 {[%clk 0:01:15]} 29. Rb1 {[%clk 0:01:39]}  Qa4 {[%clk 0:01:11]} 30. Qxa4 {[%clk 0:01:24]}  Bxa4 {[%clk 0:01:10]} 31. Nd2 {[%clk 0:01:18]}  c3 {[%clk 0:01:05]} 32. Nc4 {[%clk 0:01:14]}  Bc6 {[%clk 0:01:01]} 33. Rc1 {[%clk 0:01:01]}  Bb4 {[%clk 0:00:57]} 34. Rb1 {[%clk 0:00:54]}  Be7 {[%clk 0:00:48]} 35. Rc1 {[%clk 0:00:52]}  Bb4 {[%clk 0:00:41]} 36. Rb1 {[%clk 0:00:51]}  Be7 {[%clk 0:00:39]} 37. Rc1 {[%clk 0:00:51]}  Bb4 {[%clk 0:00:32]} 1/2-1/2


[Site "https://www.chess.com"]

[Event "Titled Tuesday Blitz August 22 Late 2023"]
[White "KrokerGuy"]
[Black "Kochiev, Ivan"]
[BlackFideId "2917890"]
[WhiteElo "2458"]
[BlackElo "2570"]
[Result "1-0"]
[Round "11"]
[TimeControl "180+1"]
[Date "2023.08.22"]
[WhiteClock "0:01:36"]
[BlackClock "0:01:24"]
[Board "62"]

1. e4 {[%clk 0:03:00]}  c5 {[%clk 0:02:58]} 2. Nf3 {[%clk 0:03:01]}  d6 {[%clk 0:02:58]} 3. d4 {[%clk 0:03:02]}  cxd4 {[%clk 0:02:58]} 4. Nxd4 {[%clk 0:03:02]}  Nf6 {[%clk 0:02:59]} 5. Nc3 {[%clk 0:03:03]}  Nc6 {[%clk 0:02:58]} 6. Bg5 {[%clk 0:03:03]}  e6 {[%clk 0:02:58]} 7. Qd3 {[%clk 0:03:01]}  a6 {[%clk 0:02:57]} 8. Nxc6 {[%clk 0:03:02]}  bxc6 {[%clk 0:02:57]} 9. O-O-O {[%clk 0:03:02]}  Be7 {[%clk 0:02:55]} 10. Qg3 {[%clk 0:03:02]}  d5 {[%clk 0:02:25]} 11. Bd3 {[%clk 0:03:02]}  O-O {[%clk 0:01:51]} 12. Kb1 {[%clk 0:02:53]}  c5 {[%clk 0:01:42]} 13. exd5 {[%clk 0:02:08]}  Nxd5 {[%clk 0:01:39]} 14. Nxd5 {[%clk 0:01:57]}  exd5 {[%clk 0:01:24]} 15. Qh4 {[%clk 0:01:36]} 1-0


[Site "https://www.chess.com"]

[Event "Titled Tuesday Blitz August 22 Late 2023"]
[White "Boor, Carl"]
[Black "Blackburn, Jonathan L B"]
[WhiteFideId "2017008"]
[BlackFideId "1801090"]
[WhiteElo "2557"]
[BlackElo "2454"]
[Result "0-1"]
[Round "11"]
[TimeControl "180+1"]
[Date "2023.08.22"]
[WhiteClock "0:00:00"]
[BlackClock "0:00:39"]
[Board "64"]

1. d4 {[%clk 0:02:28]}  Nf6 {[%clk 0:02:58]} 2. c4 {[%clk 0:02:27]}  g6 {[%clk 0:02:29]} 3. g3 {[%clk 0:02:27]}  Bg7 {[%clk 0:02:29]} 4. Bg2 {[%clk 0:02:27]}  d6 {[%clk 0:02:29]} 5. Nc3 {[%clk 0:02:28]}  O-O {[%clk 0:02:30]} 6. Nf3 {[%clk 0:02:28]}  c5 {[%clk 0:02:30]} 7. O-O {[%clk 0:02:27]}  Nc6 {[%clk 0:02:30]} 8. dxc5 {[%clk 0:02:27]}  dxc5 {[%clk 0:02:31]} 9. Be3 {[%clk 0:02:26]}  Be6 {[%clk 0:02:28]} 10. Qa4 {[%clk 0:02:12]}  Nd7 {[%clk 0:02:22]} 11. Ng5 {[%clk 0:02:00]}  Nb6 {[%clk 0:02:12]} 12. Nxe6 {[%clk 0:01:57]}  fxe6 {[%clk 0:02:12]} 13. Qc2 {[%clk 0:01:37]}  Nd4 {[%clk 0:02:06]} 14. Bxd4 {[%clk 0:01:28]}  cxd4 {[%clk 0:02:07]} 15. Ne4 {[%clk 0:01:23]}  Rc8 {[%clk 0:02:02]} 16. b3 {[%clk 0:01:16]}  d3 {[%clk 0:02:00]} 17. exd3 {[%clk 0:01:16]}  Bxa1 {[%clk 0:01:59]} 18. Rxa1 {[%clk 0:01:16]}  Qd4 {[%clk 0:01:58]} 19. Re1 {[%clk 0:01:16]}  Nd5 {[%clk 0:01:56]} 20. Qd2 {[%clk 0:01:06]}  Nc7 {[%clk 0:01:40]} 21. Qh6 {[%clk 0:01:00]}  Qg7 {[%clk 0:01:37]} 22. Qxg7+ {[%clk 0:00:55]}  Kxg7 {[%clk 0:01:38]} 23. Ng5 {[%clk 0:00:51]}  b6 {[%clk 0:01:26]} 24. Nxe6+ {[%clk 0:00:39]}  Nxe6 {[%clk 0:01:27]} 25. Rxe6 {[%clk 0:00:39]}  Rc7 {[%clk 0:01:27]} 26. d4 {[%clk 0:00:36]}  Rf6 {[%clk 0:01:27]} 27. Re3 {[%clk 0:00:35]}  Rd6 {[%clk 0:01:23]} 28. d5 {[%clk 0:00:24]}  a6 {[%clk 0:01:17]} 29. a4 {[%clk 0:00:23]}  b5 {[%clk 0:01:15]} 30. axb5 {[%clk 0:00:22]}  axb5 {[%clk 0:01:16]} 31. Bf1 {[%clk 0:00:23]}  b4 {[%clk 0:01:05]} 32. Re4 {[%clk 0:00:21]}  Kf6 {[%clk 0:01:00]} 33. Bh3 {[%clk 0:00:19]}  Ra6 {[%clk 0:00:53]} 34. Be6 {[%clk 0:00:17]}  Ra3 {[%clk 0:00:49]} 35. Re3 {[%clk 0:00:17]}  Rxc4 {[%clk 0:00:42]} 36. Bg4 {[%clk 0:00:00]}  Rxg4 {[%clk 0:00:39]} 0-1


[Site "https://www.chess.com"]

[Event "Titled Tuesday Blitz August 22 Late 2023"]
[White "Dwilewicz, Katarzyna"]
[Black "Estrada Nieto, Julian"]
[WhiteFideId "1148486"]
[BlackFideId "5101018"]
[WhiteElo "2436"]
[BlackElo "2531"]
[Result "1-0"]
[Round "11"]
[TimeControl "180+1"]
[Date "2023.08.22"]
[WhiteClock "0:00:48"]
[BlackClock "0:00:00"]
[Board "65"]

1. e4 {[%clk 0:03:00]}  e5 {[%clk 0:02:59]} 2. Nf3 {[%clk 0:03:00]}  Nc6 {[%clk 0:02:59]} 3. Bc4 {[%clk 0:03:01]}  Bc5 {[%clk 0:02:59]} 4. c3 {[%clk 0:03:01]}  Nf6 {[%clk 0:02:59]} 5. d3 {[%clk 0:03:02]}  d6 {[%clk 0:02:59]} 6. O-O {[%clk 0:03:02]}  a6 {[%clk 0:02:59]} 7. Bb3 {[%clk 0:03:01]}  Ba7 {[%clk 0:03:00]} 8. Nbd2 {[%clk 0:03:01]}  O-O {[%clk 0:02:57]} 9. h3 {[%clk 0:03:01]}  Be6 {[%clk 0:02:55]} 10. Re1 {[%clk 0:03:01]}  Re8 {[%clk 0:02:52]} 11. Nf1 {[%clk 0:03:01]}  Bxb3 {[%clk 0:02:51]} 12. axb3 {[%clk 0:03:00]}  d5 {[%clk 0:02:51]} 13. Ng3 {[%clk 0:02:53]}  dxe4 {[%clk 0:02:50]} 14. dxe4 {[%clk 0:02:52]}  Qxd1 {[%clk 0:02:47]} 15. Rxd1 {[%clk 0:02:53]}  Rad8 {[%clk 0:02:46]} 16. Bg5 {[%clk 0:02:53]}  h6 {[%clk 0:02:08]} 17. Bxf6 {[%clk 0:02:52]}  gxf6 {[%clk 0:02:08]} 18. Kf1 {[%clk 0:02:43]}  Ne7 {[%clk 0:02:01]} 19. Nh5 {[%clk 0:02:41]}  Rxd1+ {[%clk 0:01:31]} 20. Rxd1 {[%clk 0:02:40]}  Rc8 {[%clk 0:01:32]} 21. Nxf6+ {[%clk 0:02:39]}  Kf8 {[%clk 0:01:33]} 22. Nxe5 {[%clk 0:02:36]}  Ng8 {[%clk 0:01:18]} 23. Nxg8 {[%clk 0:02:31]}  Kxg8 {[%clk 0:01:19]} 24. Rd7 {[%clk 0:02:31]}  Re8 {[%clk 0:01:16]} 25. f4 {[%clk 0:02:23]}  Bb8 {[%clk 0:01:09]} 26. Ng4 {[%clk 0:02:16]}  Kg7 {[%clk 0:01:06]} 27. e5 {[%clk 0:02:14]}  Kg6 {[%clk 0:01:02]} 28. Ne3 {[%clk 0:02:06]}  Ba7 {[%clk 0:00:43]} 29. Nd5 {[%clk 0:02:00]}  Kf5 {[%clk 0:00:40]} 30. Rxc7 {[%clk 0:01:38]}  Rd8 {[%clk 0:00:37]} 31. c4 {[%clk 0:01:39]}  Ke4 {[%clk 0:00:34]} 32. Rxb7 {[%clk 0:01:35]}  Bd4 {[%clk 0:00:34]} 33. Rxf7 {[%clk 0:01:34]}  Rb8 {[%clk 0:00:30]} 34. b4 {[%clk 0:01:32]}  Rc8 {[%clk 0:00:27]} 35. Nf6+ {[%clk 0:01:27]}  Kd3 {[%clk 0:00:20]} 36. c5 {[%clk 0:01:22]}  a5 {[%clk 0:00:20]} 37. e6 {[%clk 0:01:13]}  axb4 {[%clk 0:00:15]} 38. e7 {[%clk 0:01:13]}  Bxf6 {[%clk 0:00:15]} 39. Rxf6 {[%clk 0:01:12]}  Re8 {[%clk 0:00:14]} 40. Re6 {[%clk 0:01:05]}  b3 {[%clk 0:00:07]} 41. f5 {[%clk 0:00:56]}  Kc2 {[%clk 0:00:06]} 42. Re2+ {[%clk 0:00:54]}  Kd1 {[%clk 0:00:05]} 43. f6 {[%clk 0:00:54]}  Rc8 {[%clk 0:00:00]} 44. e8=Q {[%clk 0:00:48]} 1-0


[Site "https://www.chess.com"]

[Event "Titled Tuesday Blitz August 22 Late 2023"]
[White "Polaczek, Richard"]
[Black "Janaszak, Dawid"]
[WhiteFideId "200026"]
[BlackFideId "1119206"]
[WhiteElo "2412"]
[BlackElo "2511"]
[Result "0-1"]
[Round "11"]
[TimeControl "180+1"]
[Date "2023.08.22"]
[WhiteClock "0:00:02"]
[BlackClock "0:00:44"]
[Board "69"]

1. d4 {[%clk 0:02:59]}  Nf6 {[%clk 0:02:59]} 2. Bg5 {[%clk 0:02:58]}  d5 {[%clk 0:02:55]} 3. Bxf6 {[%clk 0:02:57]}  gxf6 {[%clk 0:02:56]} 4. c4 {[%clk 0:02:57]}  e6 {[%clk 0:02:54]} 5. cxd5 {[%clk 0:02:54]}  Qxd5 {[%clk 0:02:53]} 6. Nc3 {[%clk 0:02:53]}  Qa5 {[%clk 0:02:53]} 7. Nf3 {[%clk 0:02:53]}  Bd7 {[%clk 0:02:42]} 8. g3 {[%clk 0:02:52]}  Bc6 {[%clk 0:02:35]} 9. Bg2 {[%clk 0:02:50]}  Nd7 {[%clk 0:02:35]} 10. O-O {[%clk 0:02:49]}  f5 {[%clk 0:02:34]} 11. a3 {[%clk 0:02:43]}  Bxf3 {[%clk 0:02:23]} 12. Bxf3 {[%clk 0:02:41]}  c6 {[%clk 0:02:23]} 13. b4 {[%clk 0:02:35]}  Qc7 {[%clk 0:02:21]} 14. b5 {[%clk 0:02:30]}  Bg7 {[%clk 0:02:17]} 15. bxc6 {[%clk 0:02:27]}  bxc6 {[%clk 0:02:17]} 16. Qa4 {[%clk 0:02:22]}  O-O {[%clk 0:02:11]} 17. Rac1 {[%clk 0:02:22]}  Nb6 {[%clk 0:02:08]} 18. Qa6 {[%clk 0:01:57]}  Qc8 {[%clk 0:01:58]} 19. Qa5 {[%clk 0:01:49]}  Nc4 {[%clk 0:01:48]} 20. Qc5 {[%clk 0:01:44]}  Nd2 {[%clk 0:01:43]} 21. Bxc6 {[%clk 0:01:40]}  Rb8 {[%clk 0:01:33]} 22. Rfd1 {[%clk 0:01:36]}  Nb3 {[%clk 0:01:33]} 23. Qd6 {[%clk 0:01:14]}  Rd8 {[%clk 0:01:24]} 24. Nd5 {[%clk 0:00:39]}  exd5 {[%clk 0:01:02]} 25. Qe7 {[%clk 0:00:36]}  Nxc1 {[%clk 0:00:59]} 26. Rxc1 {[%clk 0:00:35]}  Qe6 {[%clk 0:00:59]} 27. Qxa7 {[%clk 0:00:31]}  Rbc8 {[%clk 0:00:55]} 28. Qc5 {[%clk 0:00:02]}  Rd6 {[%clk 0:00:44]} 0-1


[Site "https://www.chess.com"]